bitfinex/quotes_BTCUSD_20260307
["timestamp","ask_amount","ask_price","bid_price","bid_amount"]
[1772853788881,0.03623888,68277.0,68264.0,0.07340795]
[1772853789376,0.03771888,68277.0,68264.0,0.22498981]
[1772853789616,0.03771888,68277.0,68260.0,0.06434596]
[1772853789617,0.03771888,68277.0,68234.0,0.28912301]
[1772853789618,0.14034032,68276.0,68234.0,0.28912301]
[1772853789833,0.14034032,68276.0,68234.0,0.07327627]
[1772853789834,0.03623888,68249.0,68234.0,0.07327627]
[1772853790299,0.03623888,68249.0,68235.0,0.15010186]
[1772853790531,0.07326222,68248.0,68236.0,0.22337696]
[1772853791109,0.07326222,68248.0,68237.0,0.00148]
[1772853791316,0.1095011,68248.0,68236.0,0.22337696]
[1772853791532,0.1095011,68248.0,68237.0,0.00148]
[1772853791720,0.03623888,68247.0,68237.0,0.00148]
[1772853792148,0.03623888,68247.0,68234.0,0.07327627]
[1772853792339,0.07326436,68246.0,68235.0,0.07327573]
[1772853792577,0.07326436,68246.0,68235.0,0.00148]
[1772853792771,0.10950324,68246.0,68235.0,0.00148]
[1772853793315,0.03623888,68245.0,68235.0,0.00148]
[1772853793949,0.03662358,68245.0,68235.0,0.00148]
[1772853795393,0.03662358,68245.0,68235.0,0.00168]
[1772853795633,0.07326651,68244.0,68236.0,0.0732751]
[1772853795845,0.07326651,68244.0,68235.0,0.07495598]
[1772853798834,0.07326651,68244.0,68231.0,0.02468868]
[1772853798835,0.07365074,68245.0,68231.0,0.15010186]
[1772853799214,0.07365074,68245.0,68233.0,0.15010186]
[1772853799740,0.0003847,68245.0,68233.0,0.15010186]
[1772853799902,0.0003847,68245.0,68235.0,0.15010186]
[1772853800104,0.07325002,68260.0,68236.0,0.15158186]
[1772853800300,0.03771888,68259.0,68241.0,0.17463801]
[1772853800495,0.07325002,68260.0,68241.0,0.17463801]
[1772853800496,0.03771888,68258.0,68243.0,0.15010186]
[1772853800935,0.00148,68257.0,68243.0,0.15010186]
[1772853801166,0.03623888,68256.0,68243.0,0.15010186]
[1772853803496,0.07324444,68265.0,68246.0,0.06434596]
[1772853803696,0.07324504,68264.0,68251.0,0.15010186]
[1772853803856,0.10948392,68264.0,68252.0,0.15158186]
[1772853804049,0.00022001,68258.0,68252.0,0.15158186]
[1772853807392,0.00575,68267.0,68254.0,0.02535951]
[1772853807592,0.00575,68267.0,68258.0,0.15010186]
[1772853807593,0.07899231,68267.0,68258.0,0.15010186]
[1772853807793,0.07899231,68267.0,68258.0,0.15158186]
[1772853807999,1e-08,68267.0,68259.0,0.15010186]
[1772853808806,1e-08,68267.0,68259.0,0.15021708]
[1772853810546,1e-08,68267.0,68260.0,0.07324934]
[1772853810746,1e-08,68267.0,68260.0,0.2233512]
[1772853811376,1e-08,68267.0,68261.0,0.15010186]
[1772853812574,1e-08,68267.0,68263.0,0.14224301]
[1772853812953,0.00022002,68267.0,68263.0,0.14224301]
[1772853813698,0.00022002,68267.0,68263.0,0.11831423]
[1772853814604,0.00022002,68267.0,68263.0,0.19156004]
[1772853818087,0.00022002,68267.0,68260.0,0.07324934]
[1772853821093,0.07342845,68279.0,68260.0,0.07344934]
[1772853821306,0.07323113,68277.0,68270.0,0.14224301]
[1772853821480,0.07323003,68278.0,68270.0,0.14224301]
[1772853822417,0.07342845,68279.0,68270.0,0.07323861]
[1772853822418,0.0734282,68279.0,68270.0,0.07323861]
[1772853822554,0.03960231,68278.0,68270.0,0.07323861]
[1772853826231,0.0732311,68277.0,68269.0,0.13758513]
[1772853826610,0.0732311,68277.0,68269.0,0.07323917]
[1772853829636,0.00022001,68278.0,68269.0,0.07323917]
[1772853829842,0.00022001,68278.0,68270.0,0.14224301]
[1772853830476,0.00022001,68278.0,68271.0,0.07323753]
[1772853830796,0.0732193,68288.0,68273.0,0.02514981]
[1772853831007,0.0732193,68288.0,68274.0,0.14372301]
[1772853831231,0.0732193,68288.0,68278.0,0.20659118]
[1772853831422,0.03960231,68289.0,68278.0,0.20659118]
[1772853831586,0.1128207,68289.0,68278.0,0.20659118]
[1772853832416,0.07321839,68289.0,68278.0,0.06434817]
[1772853832608,0.07343205,68295.0,68282.0,0.14224301]
[1772853832930,0.07343205,68295.0,68284.0,0.14224301]
[1772853833701,0.07343205,68295.0,68284.0,0.14235823]
[1772853835816,0.07343205,68295.0,68285.0,0.07322252]
[1772853836227,0.07918338,68294.0,68285.0,0.07322252]
[1772853837054,0.00597001,68294.0,68285.0,0.07322252]
[1772853839473,0.07918289,68294.0,68285.0,0.07322252]
[1772853840406,0.03660054,68293.0,68285.0,0.07322252]
[1772853841520,0.07321501,68292.0,68284.0,0.07333774]
[1772853841724,0.07321501,68292.0,68274.0,0.00148]
[1772853841725,0.1487289,68289.0,68274.0,0.00148]
[1772853841873,0.1487289,68289.0,68271.0,0.07323753]
[1772853841874,0.14381598,68286.0,68272.0,0.00148]
[1772853842076,0.03660054,68284.0,68271.0,0.07471753]
[1772853842287,0.03660054,68282.0,68271.0,0.07323753]
[1772853842457,0.03660054,68281.0,68271.0,0.07323753]
[1772853843559,0.03660054,68279.0,68271.0,0.07323753]
[1772853844505,0.07322703,68281.0,68271.0,0.22008912]
[1772853844677,0.07322703,68281.0,68271.0,0.07323753]
[1772853845218,0.07322703,68281.0,68271.0,0.22008912]
[1772853845794,0.10982757,68281.0,68271.0,0.22008912]
[1772853848624,0.03858488,68280.0,68271.0,0.07323753]
[1772853850835,0.1118131,68280.0,68271.0,0.07323753]
[1772853853073,0.1118131,68280.0,68271.0,0.07343753]
[1772853853839,0.03858488,68279.0,68271.0,0.07343753]
[1772853858327,0.11181434,68279.0,68271.0,0.07343753]
[1772853858964,0.03858488,68279.0,68271.0,0.07343753]
[1772853864596,0.07322684,68281.0,68271.0,0.07343753]
[1772853864850,0.07322684,68281.0,68271.0,0.214304]
[1772853866356,0.03849876,68280.0,68271.0,0.214304]
[1772853867466,0.07322684,68281.0,68271.0,0.214304]
[1772853869491,0.07322622,68282.0,68271.0,0.214304]
[1772853870957,0.11172498,68282.0,68271.0,0.214304]
[1772853872628,0.03849876,68281.0,68271.0,0.214304]
[1772853874345,0.07322788,68280.0,68271.0,0.214304]
[1772853876919,0.11172636,68281.0,68271.0,0.214304]
[1772853881080,0.14611093,68283.0,68271.0,0.07343753]
[1772853881428,0.00022001,68284.0,68274.0,0.09237903]
[1772853881587,0.07322159,68286.0,68276.0,0.14630428]
[1772853881936,0.18505129,68288.0,68276.0,0.14630428]
[1772853882252,0.11215984,68288.0,68276.0,0.14630428]
[1772853882935,0.11215996,68288.0,68276.0,0.14630428]
[1772853883136,0.11215996,68288.0,68277.0,0.0732311]
[1772853884697,0.03894036,68287.0,68277.0,0.0732311]
[1772853893679,0.03916037,68287.0,68277.0,0.0732311]
[1772853894995,0.00022001,68287.0,68277.0,0.21953538]
[1772853899581,0.00022001,68287.0,68279.0,0.03564758]
[1772853899776,0.00022001,68287.0,68280.0,0.14196085]
[1772853900415,0.00022001,68287.0,68281.0,0.07322681]
[1772853902283,0.0001153,68289.0,68281.0,0.21605504]
[1772853903422,0.15208094,68294.0,68281.0,0.21605504]
[1772853903423,0.00597001,68294.0,68283.0,0.14282823]
[1772853904034,0.04211862,68294.0,68282.0,0.00148]
[1772853904288,0.04211862,68294.0,68282.0,0.0015953]
[1772853904661,0.03614861,68293.0,68283.0,0.001]
[1772853904908,0.03614861,68293.0,68284.0,0.07322359]
[1772853905069,0.07321407,68293.0,68284.0,0.07322359]
[1772853905229,0.03614861,68292.0,68284.0,0.07322359]
[1772853905440,0.03614861,68292.0,68284.0,0.07470359]
[1772853906283,0.03614861,68292.0,68284.0,0.07322359]
[1772853906514,0.03614861,68292.0,68284.0,0.07470359]
[1772853906953,0.03614861,68291.0,68283.0,0.07322359]
[1772853907259,0.03614861,68291.0,68282.0,0.07322524]
[1772853907441,0.03614861,68291.0,68281.0,0.07322681]
[1772853909018,0.07321716,68290.0,68280.0,0.07470784]
[1772853909222,0.0373258,68289.0,68280.0,0.07470784]
[1772853909642,0.0373258,68289.0,68279.0,0.07322836]
[1772853910645,0.0373258,68289.0,68278.0,0.07470996]
[1772853911669,0.0373258,68287.0,68274.0,0.07323379]
[1772853912389,0.00148,68286.0,68274.0,0.07323379]
[1772853912685,0.0373258,68285.0,68274.0,0.07323379]
[1772853915522,0.07322359,68284.0,68279.0,0.0002]
[1772853915829,0.0373258,68283.0,68279.0,0.0002]
[1772853920895,0.11055154,68282.0,68279.0,0.0002]
[1772853921464,0.11055154,68283.0,68279.0,0.0002]
[1772853922385,0.07322574,68283.0,68274.0,0.07323379]
[1772853922527,0.07322574,68283.0,68274.0,0.21606202]
[1772853923851,0.07322574,68283.0,68275.0,0.14282823]
[1772853924057,0.07322461,68284.0,68275.0,0.14282823]
[1772853924848,0.0373258,68283.0,68279.0,0.0002]
[1772853925979,0.11055123,68283.0,68279.0,0.0002]
[1772853926638,0.0373258,68283.0,68279.0,0.0002]
[1772853926874,0.00148,68285.0,68279.0,0.0002]
[1772853927210,0.07322037,68287.0,68279.0,0.0002]
[1772853927407,0.00148,68286.0,68279.0,0.0002]
[1772853927609,0.00153629,68286.0,68279.0,0.0002]
[1772853931575,0.07322252,68285.0,68279.0,0.0002]
[1772853940567,0.07344253,68285.0,68279.0,0.0002]
[1772853942715,0.0002763,68286.0,68279.0,0.0002]
[1772853942922,0.07321968,68288.0,68281.0,0.15060064]
[1772853943251,0.07321968,68288.0,68279.0,0.0002]
[1772853943455,0.07469968,68288.0,68279.0,0.00025629]
[1772853943855,0.07321968,68288.0,68279.0,0.00025629]
[1772853944059,0.07469968,68288.0,68279.0,0.00025629]
[1772853945293,0.07470022,68288.0,68280.0,0.07322788]
[1772853946493,0.07322022,68288.0,68280.0,0.07322788]
[1772853947700,0.07344023,68288.0,68280.0,0.07322788]
[1772853949815,0.07343947,68288.0,68280.0,0.07322788]
[1772853950019,0.00022001,68288.0,68280.0,0.07322788]
[1772853950255,0.07343953,68288.0,68281.0,0.15060064]
[1772853951465,0.07343953,68288.0,68281.0,0.22382672]
[1772853955551,0.07391433,68288.0,68281.0,0.22382672]
[1772853957971,0.07391433,68288.0,68281.0,0.07322608]
[1772853958240,0.07391433,68288.0,68280.0,0.07322788]
[1772853959905,0.07321823,68291.0,68281.0,0.14854661]
[1772853960110,0.07321716,68290.0,68281.0,0.22177237]
[1772853961019,0.00022001,68288.0,68281.0,0.22177237]
[1772853962400,0.00022001,68292.0,68283.0,0.03415672]
[1772853962628,0.00022001,68292.0,68284.0,0.14187898]
[1772853963650,0.00597001,68294.0,68284.0,0.14187898]
[1772853964356,0.00597001,68294.0,68285.0,0.07322252]
[1772853964678,0.00022001,68296.0,68288.0,0.14187898]
[1772853964875,0.00022001,68298.0,68288.0,0.17590586]
[1772853965073,0.00022001,68299.0,68290.0,0.14187898]
[1772853965868,0.00022001,68299.0,68291.0,0.00148]
[1772853967020,0.07354831,68301.0,68293.0,0.14187898]
[1772853967021,0.00034291,68301.0,68293.0,0.14187898]
[1772853968994,0.00034291,68301.0,68294.0,0.07321287]
[1772853969169,0.00022001,68299.0,68294.0,0.07321287]
[1772853969369,0.00034291,68301.0,68294.0,0.07321287]
[1772853969621,0.00034291,68301.0,68294.0,0.21509185]
[1772853972043,0.00022001,68306.0,68295.0,0.14187898]
[1772853973500,0.00022001,68306.0,68296.0,0.2150897]
[1772853974101,0.0001229,68308.0,68296.0,0.07321072]
[1772853974300,0.0001229,68308.0,68297.0,0.14187898]
[1772853975634,0.0001229,68308.0,68298.0,0.07320858]
[1772853976401,0.00034291,68308.0,68298.0,0.07320858]
[1772853978964,0.07354163,68308.0,68298.0,0.07320858]
[1772853979267,0.07354163,68308.0,68287.0,0.07322037]
[1772853979268,0.0369806,68303.0,68287.0,0.07322037]
[1772853979495,0.0369806,68301.0,68287.0,0.07322037]
[1772853979724,0.0369806,68299.0,68287.0,0.07322037]
[1772853979851,0.0369806,68298.0,68287.0,0.07322037]
[1772853980057,0.0369806,68298.0,68286.0,0.07322074]
[1772853980709,0.0369806,68298.0,68285.0,0.07322252]
[1772853982113,0.04892051,68296.0,68285.0,0.07322252]
[1772853984336,0.04892051,68294.0,68285.0,0.0002]
[1772853988191,0.07321394,68293.0,68285.0,0.0002]
[1772853988695,0.12213445,68293.0,68285.0,0.0002]
[1772853989899,0.04892051,68292.0,68285.0,0.0002]
[1772853990769,0.07321608,68291.0,68285.0,0.0002]
[1772853991548,0.07321608,68291.0,68268.0,0.1483]
[1772853991549,0.07321608,68291.0,68254.0,0.36199282]
[1772853991794,0.07321608,68291.0,68216.0,1.46657016]
[1772853991795,0.07321608,68291.0,68245.0,0.08994409]
[1772853991796,0.04678382,68270.0,68245.0,0.08994409]
[1772853991995,0.00148,68269.0,68245.0,0.08994409]
[1772853992327,0.04892051,68264.0,68245.0,0.03623513]
[1772853992528,0.15074344,68261.0,68245.0,0.03623513]
[1772853992847,0.15074344,68258.0,68240.0,0.00575]
[1772853993023,0.04892051,68255.0,68240.0,0.00575]
[1772853993230,0.15074344,68252.0,68240.0,0.00575]
[1772853993429,0.04892051,68250.0,68240.0,0.00575]
[1772853993835,0.04892051,68249.0,68240.0,0.00575]
[1772853994034,0.15074344,68250.0,68235.0,0.000229]
[1772853994035,0.15074344,68246.0,68235.0,1e-08]
[1772853994240,0.04892051,68243.0,68235.0,1e-08]
[1772853994477,0.04678382,68250.0,68235.0,1e-08]
[1772853994478,0.04892051,68241.0,68235.0,1e-08]
[1772853994713,0.04892051,68239.0,68235.0,1e-08]
[1772853994898,0.04892051,68239.0,68225.0,0.0004]
[1772853994899,0.04892051,68237.0,68225.0,0.0004]
[1772853996168,0.04892051,68235.0,68223.0,0.000229]
[1772853996371,0.04892051,68233.0,68223.0,0.000229]
[1772853997166,0.1221999,68232.0,68223.0,0.000229]
[1772853997365,0.07327939,68232.0,68223.0,0.000229]
[1772853997565,0.05040051,68231.0,68228.0,0.0002]
[1772853997830,0.05040051,68231.0,68223.0,0.000229]
[1772853999355,0.07328154,68230.0,68223.0,0.000229]
[1772854003938,0.00148,68229.0,68223.0,0.07351751]
[1772854004122,0.07328154,68230.0,68223.0,0.07351751]
[1772854004323,0.00148,68229.0,68223.0,0.07351751]
[1772854004520,0.07328154,68230.0,68223.0,0.000229]
[1772854004730,0.04892051,68227.0,68223.0,0.000429]
[1772854005846,0.07328517,68227.0,68223.0,0.000429]
[1772854006056,0.04892051,68226.0,68221.0,0.07161997]
[1772854006469,0.04892051,68226.0,68220.0,0.07329198]
[1772854007838,0.04892051,68226.0,68216.0,0.07349617]
[1772854007957,0.04899927,68226.0,68216.0,0.07349617]
[1772854008157,0.04899927,68226.0,68216.0,0.07360177]
[1772854008158,0.04892051,68225.0,68216.0,0.07360177]
[1772854010540,0.07476451,68228.0,68216.0,0.07360177]
[1772854010541,0.00148,68228.0,68216.0,0.07360177]
[1772854010744,0.07328152,68231.0,68216.0,0.07360177]
[1772854010745,0.07328259,68230.0,68217.0,0.14220688]
[1772854010951,0.00148,68227.0,68217.0,0.14220688]
[1772854011123,0.00148,68227.0,68217.0,0.14231248]
[1772854011273,0.1222031,68230.0,68217.0,0.14231248]
[1772854011274,0.00148,68226.0,68217.0,0.14231248]
[1772854011714,0.04892051,68229.0,68217.0,0.14231248]
[1772854012027,0.00148,68225.0,68217.0,0.14231248]
[1772854012170,0.04892051,68229.0,68217.0,0.14231248]
[1772854012387,0.00148,68228.0,68217.0,0.14231248]
[1772854012591,0.00148,68228.0,68218.0,0.07329443]
[1772854012793,0.00148,68227.0,68218.0,0.07329443]
[1772854013195,0.07328262,68230.0,68218.0,0.07340003]
[1772854013444,0.00148,68229.0,68218.0,0.21560691]
[1772854013643,0.07328262,68230.0,68218.0,0.21560691]
[1772854013850,0.00148,68228.0,68218.0,0.21560691]
[1772854014229,0.0157765,68237.0,68219.0,0.14220688]
[1772854014424,0.00148,68236.0,68219.0,0.14220688]
[1772854014646,0.00148,68236.0,68221.0,0.14220688]
[1772854015065,0.04892051,68245.0,68220.0,0.07329228]
[1772854015220,0.04892051,68243.0,68221.0,0.14231248]
[1772854016997,0.12218917,68242.0,68223.0,0.14220688]
[1772854017201,0.04892051,68242.0,68223.0,0.14231248]
[1772854017499,0.00148,68241.0,68223.0,0.14231248]
[1772854017674,0.00148,68240.0,68223.0,0.14231248]
[1772854018289,0.00148,68240.0,68223.0,0.14331248]
[1772854018647,0.00148,68240.0,68223.0,0.14231248]
[1772854018847,0.1221924,68239.0,68224.0,0.07328799]
[1772854019066,0.00148,68238.0,68225.0,0.13904413]
[1772854021142,0.04892051,68237.0,68226.0,0.07328584]
[1772854021348,0.00148,68238.0,68226.0,0.07328584]
[1772854021349,0.04892051,68235.0,68226.0,0.07328584]
[1772854021498,0.14548971,68234.0,68226.0,0.07328584]
[1772854021697,0.04892051,68233.0,68226.0,0.07328584]
[1772854022042,0.00148,68232.0,68226.0,0.07328584]
[1772854022167,0.14615491,68231.0,68226.0,0.07328584]
[1772854022369,0.14615491,68230.0,68226.0,0.07328584]
[1772854022565,0.00148,68230.0,68226.0,0.07328584]
[1772854022770,0.00148,68230.0,68226.0,0.21513664]
[1772854023223,0.00148,68231.0,68226.0,0.21513664]
[1772854023475,0.00148,68231.0,68226.0,0.07328584]
[1772854023649,0.00148,68231.0,68227.0,0.1418508]
[1772854024233,0.00148,68232.0,68227.0,0.1418508]
[1772854024434,0.11562502,68238.0,68227.0,0.1418508]
[1772854024761,0.00148,68237.0,68227.0,0.1418508]
[1772854025073,0.00170001,68237.0,68227.0,0.1418508]
[1772854025308,0.00170001,68237.0,68228.0,0.04947473]
[1772854026460,0.00170001,68237.0,68228.0,0.19132553]
[1772854026628,0.00148,68236.0,68229.0,0.1418508]
[1772854026837,0.00148,68235.0,68229.0,0.1418508]
[1772854027039,0.00148,68234.0,68229.0,0.1418508]
[1772854027254,0.00148,68234.0,68230.0,0.21513234]
[1772854027414,0.11562502,68238.0,68230.0,0.07328154]
[1772854027764,0.11562502,68239.0,68230.0,0.21513234]
[1772854027962,0.00148,68237.0,68230.0,0.21513234]
[1772854028301,0.00022001,68244.0,68230.0,0.07328154]
[1772854028469,0.00148,68243.0,68231.0,0.1418508]
[1772854028669,0.12280109,68250.0,68230.0,0.07328154]
[1772854028670,0.00148,68242.0,68230.0,0.07328154]
[1772854028887,0.00148,68241.0,68231.0,0.1418508]
[1772854029050,0.04892051,68249.0,68231.0,0.1418508]
[1772854029254,0.07326329,68247.0,68233.0,0.1418508]
[1772854029789,0.1221838,68247.0,68233.0,0.1418508]
[1772854031388,0.1221838,68247.0,68234.0,0.07327725]
[1772854032351,0.00022001,68244.0,68234.0,0.21512805]
[1772854032694,0.00022001,68244.0,68234.0,0.21612805]
[1772854032848,0.00022001,68244.0,68234.0,0.21512805]
[1772854033048,0.00022001,68244.0,68234.0,0.21612805]
[1772854033469,0.00148,68243.0,68235.0,0.1418508]
[1772854033669,0.00148,68242.0,68235.0,0.1418508]
[1772854034402,0.07326212,68249.0,68235.0,0.1418508]
[1772854034603,0.00148,68243.0,68235.0,0.1418508]
[1772854035263,0.00148,68243.0,68235.0,0.1428508]
[1772854035400,0.00148,68243.0,68237.0,0.1418508]
[1772854037421,0.00148,68243.0,68238.0,0.21512375]
[1772854037617,0.0732628,68248.0,68238.0,0.21512375]
[1772854037818,0.00148,68247.0,68238.0,0.21512375]
[1772854038895,0.00022001,68243.0,68238.0,0.21512375]
[1772854040243,0.04892051,68242.0,68232.0,0.07327939]
[1772854041142,0.05040051,68241.0,68232.0,0.07327939]
[1772854041506,0.05040051,68241.0,68230.0,0.07327939]
[1772854041721,0.0732708,68240.0,68228.0,0.07328369]
[1772854041922,0.04892051,68239.0,68228.0,0.07328369]
[1772854044667,0.04892051,68237.0,68226.0,0.0002]
[1772854046636,0.07327471,68237.0,68226.0,0.0002]
[1772854046841,0.00148,68236.0,68226.0,0.0002]
[1772854048165,0.05040051,68236.0,68226.0,0.0002]
[1772854048922,0.07327617,68235.0,68226.0,0.0002]
[1772854049558,0.04892051,68235.0,68226.0,0.0002]
[1772854050922,0.00148,68234.0,68226.0,0.0002]
[1772854051118,0.05040051,68234.0,68226.0,0.0002]
[1772854051323,0.12367777,68234.0,68226.0,0.0002]
[1772854052250,0.04892051,68233.0,68226.0,0.0002]
[1772854056796,0.07327862,68233.0,68226.0,0.0002]
[1772854056953,0.04892051,68232.0,68226.0,0.0002]
[1772854057491,0.00148,68231.0,68226.0,0.0002]
[1772854057995,0.00148,68230.0,68226.0,0.0002]
[1772854058349,0.04750881,68230.0,68226.0,0.0002]
[1772854058553,0.04898881,68230.0,68226.0,0.0002]
[1772854058864,0.04750881,68230.0,68226.0,0.0002]
[1772854059064,0.04898881,68230.0,68226.0,0.0002]
[1772854059904,0.04750881,68230.0,68226.0,0.0002]
[1772854060287,0.12079063,68230.0,68226.0,0.0002]
[1772854060664,0.04750881,68229.0,68223.0,0.0001056]
[1772854061905,0.12079188,68229.0,68223.0,0.0001056]
[1772854062105,0.04750881,68229.0,68223.0,0.0001056]
[1772854062474,0.12079194,68229.0,68223.0,0.0001056]
[1772854062675,0.07328313,68229.0,68223.0,0.0001056]
[1772854062809,0.04750881,68228.0,68223.0,0.0001056]
[1772854065738,0.04750881,68228.0,68223.0,0.0003056]
[1772854067745,0.04750881,68228.0,68217.0,0.07329336]
[1772854067746,0.07328476,68227.0,68215.0,0.22586429]
[1772854068028,0.10997664,68227.0,68217.0,0.07329511]
[1772854068174,0.07328476,68227.0,68217.0,0.07329511]
[1772854068376,0.00148,68226.0,68217.0,0.22586212]
[1772854068993,0.00148,68226.0,68217.0,0.22624717]
[1772854069354,0.00148,68226.0,68217.0,0.07368016]
[1772854069471,0.07328476,68227.0,68217.0,0.07368016]
[1772854069674,0.00148,68226.0,68217.0,0.07368016]
[1772854070330,0.07476601,68226.0,68217.0,0.07368016]
[1772854071084,0.00148,68225.0,68217.0,0.07368016]
[1772854071331,0.10997664,68227.0,68217.0,0.07368016]
[1772854071504,0.00148,68224.0,68217.0,0.07368016]
[1772854071943,0.10997664,68227.0,68217.0,0.07368016]
[1772854072399,0.00148,68226.0,68217.0,0.07368016]
[1772854073481,0.03669188,68225.0,68217.0,0.07368016]
[1772854074394,0.00148,68224.0,68217.0,0.07368016]
[1772854074606,0.00148,68224.0,68217.0,0.07388016]
[1772854075888,0.00148,68225.0,68218.0,0.15256701]
[1772854076370,0.00148,68225.0,68217.0,0.07388016]
[1772854076754,0.07328192,68230.0,68217.0,0.07388016]
[1772854076954,0.00148,68224.0,68217.0,0.07388016]
[1772854079786,0.07328382,68228.0,68217.0,0.07388016]
[1772854079984,0.00148,68224.0,68217.0,0.07388016]
[1772854080724,0.0732756,68236.0,68217.0,0.07388016]
[1772854080942,0.07327415,68237.0,68221.0,0.03389774]
[1772854081155,0.00148,68234.0,68224.0,0.14935992]
[1772854081571,0.00148,68234.0,68225.0,0.07328691]
[1772854082664,0.00022001,68233.0,68225.0,0.07328691]
[1772854084307,0.00148,68232.0,68225.0,0.07328691]
[1772854085513,0.00114741,68232.0,68225.0,0.07328691]
[1772854086115,0.00022001,68233.0,68225.0,0.07328691]
[1772854086318,0.00148,68232.0,68225.0,0.07328691]
[1772854087823,0.00148,68232.0,68223.0,0.07328691]
[1772854088153,0.00148,68234.0,68226.0,0.13670699]
[1772854090248,0.00148,68234.0,68227.0,0.07328476]
[1772854090919,0.00148,68235.0,68227.0,0.07328476]
[1772854091708,0.00148,68235.0,68227.0,0.20999175]
[1772854093463,0.00148,68235.0,68227.0,0.07328476]
[1772854095822,0.03660981,68235.0,68225.0,0.07328476]
[1772854098505,0.00148,68235.0,68225.0,0.0002]
[1772854098794,0.00170001,68235.0,68225.0,0.0002]
[1772854101606,0.00170001,68235.0,68225.0,0.13690699]
[1772854106465,0.00022001,68235.0,68226.0,0.07328584]
[1772854106673,0.00148,68234.0,68226.0,0.07328584]
[1772854111860,0.03512981,68232.0,68218.0,0.07349443]
[1772854114073,0.07328047,68231.0,68218.0,0.07349443]
[1772854114412,0.03512981,68230.0,68218.0,0.07349443]
[1772854114588,0.03312981,68230.0,68218.0,0.07349443]
[1772854116343,0.07328262,68229.0,68218.0,0.07349443]
[1772854116559,0.03660981,68228.0,68218.0,0.07349443]
[1772854116985,0.03660981,68228.0,68219.0,0.07349121]
[1772854119103,0.07476398,68228.0,68219.0,0.07349121]
[1772854119290,0.03436747,68227.0,68219.0,0.07349121]
[1772854126754,0.00148,68228.0,68220.0,0.14320471]
[1772854126955,0.00022001,68232.0,68220.0,0.14320471]
[1772854127455,0.00148,68231.0,68220.0,0.14320471]
[1772854127853,0.00148,68230.0,68220.0,0.14320471]
[1772854128266,0.03423808,68232.0,68220.0,0.14320471]
[1772854128438,0.00148,68229.0,68220.0,0.14320471]
[1772854128888,0.03423808,68232.0,68220.0,0.14320471]
[1772854128889,0.00148,68228.0,68221.0,0.07329121]
[1772854129635,0.0002781,68229.0,68221.0,0.07329121]
[1772854129839,0.00148,68228.0,68221.0,0.07329121]
[1772854131276,0.0002781,68229.0,68221.0,0.07329121]
[1772854131468,0.00148,68228.0,68221.0,0.07329121]
[1772854131851,0.00022001,68232.0,68223.0,0.03287986]
[1772854132172,0.00170001,68232.0,68224.0,0.14320471]
[1772854132519,0.00022001,68232.0,68224.0,0.14320471]
[1772854132733,0.00170001,68232.0,68224.0,0.14320471]
[1772854133176,0.00170001,68232.0,68225.0,0.07328691]
[1772854135539,0.00022001,68232.0,68225.0,0.07328691]
[1772854135699,0.00170001,68232.0,68225.0,0.07328691]
[1772854137030,0.00022001,68232.0,68225.0,0.07328691]
[1772854137226,0.00170001,68232.0,68225.0,0.07328691]
[1772854137536,0.00022001,68232.0,68225.0,0.07328691]
[1772854137733,0.00170001,68232.0,68225.0,0.07328691]
[1772854138079,0.00022001,68232.0,68225.0,0.07328691]
[1772854138234,0.00170001,68232.0,68225.0,0.07328691]
[1772854139284,0.00170001,68232.0,68223.0,0.07328691]
[1772854152207,0.00022001,68232.0,68223.0,0.07328691]
[1772854152407,0.00170001,68232.0,68223.0,0.07328691]
[1772854152796,0.00022001,68232.0,68223.0,0.07328691]
[1772854152907,0.00170001,68232.0,68223.0,0.07328691]
[1772854153736,0.00022001,68232.0,68223.0,0.07328691]
[1772854153942,0.00170001,68232.0,68223.0,0.07328691]
[1772854155287,0.03417941,68232.0,68223.0,0.07328691]
[1772854155483,0.03565941,68232.0,68223.0,0.07328691]
[1772854156259,0.03417941,68232.0,68223.0,0.07328691]
[1772854156461,0.03565941,68232.0,68223.0,0.07328691]
[1772854157275,0.03417941,68232.0,68223.0,0.07328691]
[1772854157510,0.03565941,68232.0,68223.0,0.07348691]
[1772854158516,0.03565941,68232.0,68223.0,0.0002]
[1772854163314,0.00022001,68232.0,68223.0,0.14384563]
[1772854164159,0.00022001,68232.0,68224.0,0.07328799]
[1772854167495,0.03385614,68232.0,68223.0,0.0002]
[1772854173818,0.00022001,68232.0,68223.0,0.0002]
[1772854176900,0.03337438,68231.0,68223.0,0.0002]
[1772854189864,0.03337438,68231.0,68223.0,0.0003864]
[1772854190422,0.03301858,68230.0,68223.0,0.0003864]
[1772854190612,0.03301858,68230.0,68222.0,0.07328799]
[1772854190819,0.03301858,68230.0,68223.0,0.07328906]
[1772854191032,0.03301858,68230.0,68223.0,0.07348906]
[1772854191222,0.03301858,68230.0,68222.0,0.07328955]
[1772854192551,0.07328262,68229.0,68222.0,0.07328955]
[1772854192707,0.03829196,68228.0,68222.0,0.07328955]
[1772854192912,0.03829196,68226.0,68222.0,0.07328955]
[1772854193094,0.03829196,68226.0,68221.0,0.0003307]
[1772854193300,0.03829196,68226.0,68221.0,0.07362154]
[1772854193714,0.03829196,68226.0,68219.0,0.07349286]
[1772854195144,0.04113502,68225.0,68219.0,0.07349286]
[1772854196984,0.04113502,68225.0,68219.0,0.0002]
[1772854197198,0.0411096,68224.0,68219.0,0.0002]
[1772854200242,0.07328815,68224.0,68219.0,0.0002]
[1772854200442,0.04105888,68223.0,68219.0,0.0002]
[1772854202502,0.00170001,68231.0,68221.0,0.0251009]
[1772854202696,0.00170001,68231.0,68224.0,0.13289374]
[1772854203079,0.07498122,68231.0,68224.0,0.13289374]
[1772854204376,0.07350122,68231.0,68224.0,0.13289374]
[1772854204806,0.07350122,68231.0,68225.0,0.07328691]
[1772854205425,0.1057379,68231.0,68225.0,0.07328691]
[1772854206563,0.07350122,68231.0,68221.0,0.07329019]
[1772854206739,0.03223668,68230.0,68221.0,0.07329019]
[1772854210076,0.07328165,68230.0,68221.0,0.07329019]
[1772854210292,0.03289085,68229.0,68220.0,0.07329228]
[1772854210436,0.03437085,68229.0,68220.0,0.07329228]
[1772854211280,0.03289085,68227.0,68221.0,0.0002]
[1772854213083,0.00148,68229.0,68221.0,0.0002]
[1772854213251,0.07476283,68229.0,68221.0,0.0002]
[1772854213657,0.00148,68229.0,68221.0,0.0002]
[1772854213909,0.07476266,68229.0,68221.0,0.0002]
[1772854214250,0.00148,68228.0,68221.0,0.0002]
[1772854214581,0.03289085,68229.0,68221.0,0.0002]
[1772854214785,0.00148,68228.0,68221.0,0.0002]
[1772854215581,0.03289085,68229.0,68221.0,0.0002]
[1772854215788,0.00148,68228.0,68221.0,0.0002]
[1772854216590,0.07328165,68230.0,68221.0,0.0002]
[1772854216792,0.00148,68229.0,68221.0,0.0002]
[1772854217251,0.00148,68228.0,68221.0,0.0002]